[Event "*** Titled Tuesday Blitz"]
[Site "Chess.com"]
[Date "2020.12.29"]
[Round "9"]
[White "mbachez"]
[Black "Matveev_Vladimir"]
[Result "1-0"]
[WhiteElo "2565"]
[BlackElo "2689"]
[TimeControl "180+1"]
[EndTime "11:43:45 PST"]
[Termination "mbachez won by resignation"]

1. e4 {[%clk 0:03:00.9]} 1... c5 {[%clk 0:02:58.1]} 2. Nf3 {[%clk 0:03:00.6]}
2... d6 {[%clk 0:02:58.4]} 3. Bb5+ {[%clk 0:03:00.1]} 3... Nd7 {[%clk 0:02:58]}
4. Ba4 {[%clk 0:02:58.8]} 4... Nf6 {[%clk 0:02:56.6]} 5. O-O {[%clk 0:02:58.7]}
5... a6 {[%clk 0:02:52.9]} 6. c3 {[%clk 0:02:57.3]} 6... b5 {[%clk 0:02:48.1]}
7. Bc2 {[%clk 0:02:56.8]} 7... e5 {[%clk 0:02:47.6]} 8. d4 {[%clk 0:02:56.3]}
8... Bb7 {[%clk 0:02:46.7]} 9. Re1 {[%clk 0:02:54.1]} 9... Be7 {[%clk
0:02:46.3]} 10. a4 {[%clk 0:02:54.2]} 10... O-O {[%clk 0:02:45.3]} 11. Na3
{[%clk 0:02:54.2]} 11... Qb6 {[%clk 0:01:58]} 12. Bg5 {[%clk 0:02:48.9]} 12...
Rfd8 {[%clk 0:01:49.1]} 13. dxe5 {[%clk 0:02:35.5]} 13... Nxe5 {[%clk
0:01:45.7]} 14. Qe2 {[%clk 0:02:32.2]} 14... b4 {[%clk 0:01:40.6]} 15. Nxe5
{[%clk 0:02:30.3]} 15... dxe5 {[%clk 0:01:34.6]} 16. Nc4 {[%clk 0:02:29.9]}
16... Qc7 {[%clk 0:01:35.1]} 17. a5 {[%clk 0:02:25.2]} 17... Nd5 {[%clk
0:01:14.1]} 18. exd5 {[%clk 0:02:14.9]} 18... Bxg5 {[%clk 0:01:13.8]} 19. Be4
{[%clk 0:02:01.9]} 19... bxc3 {[%clk 0:01:00.3]} 20. bxc3 {[%clk 0:02:01.3]}
20... Rab8 {[%clk 0:00:58.1]} 21. Red1 {[%clk 0:01:50.9]} 21... Qe7 {[%clk
0:00:52.5]} 22. d6 {[%clk 0:01:49.5]} 22... Qf6 {[%clk 0:00:49.2]} 23. Rab1
{[%clk 0:01:48.4]} 23... Bxe4 {[%clk 0:00:44.2]} 24. Qxe4 {[%clk 0:01:48.5]}
24... Rxb1 {[%clk 0:00:43.4]} 25. Rxb1 {[%clk 0:01:47.7]} 25... Qe6 {[%clk
0:00:42.3]} 26. h4 {[%clk 0:01:37.6]} 26... f5 {[%clk 0:00:37.6]} 27. Qxe5
{[%clk 0:01:30.1]} 27... Qxe5 {[%clk 0:00:37.2]} 28. Nxe5 {[%clk 0:01:29.6]}
28... Bf6 {[%clk 0:00:37.9]} 29. Nc4 {[%clk 0:01:25.3]} 29... Bxc3 {[%clk
0:00:37.4]} 30. Rb6 {[%clk 0:01:24.4]} 30... Kf7 {[%clk 0:00:35.1]} 31. Rxa6
{[%clk 0:01:23.3]} 31... Ke6 {[%clk 0:00:35.7]} 32. Ra7 {[%clk 0:01:01.2]} 32...
f4 {[%clk 0:00:33.6]} 33. a6 {[%clk 0:00:55.7]} 33... Kd5 {[%clk 0:00:33.4]} 34.
Na3 {[%clk 0:00:53.9]} 34... Rxd6 {[%clk 0:00:28.8]} 35. Nb5 {[%clk 0:00:52.8]}
1-0

[Event "*** Titled Tuesday Blitz"]
[Site "Chess.com"]
[Date "2020.12.29"]
[Round "9"]
[White "Fortitudine"]
[Black "Schack-Hugo"]
[Result "1-0"]
[WhiteElo "2331"]
[BlackElo "2163"]
[TimeControl "180+1"]
[EndTime "11:43:45 PST"]
[Termination "Fortitudine won by resignation"]

1. c4 {[%clk 0:03:00.9]} 1... c5 {[%clk 0:02:59.8]} 2. g3 {[%clk 0:03:00.5]}
2... Nf6 {[%clk 0:02:57.6]} 3. Bg2 {[%clk 0:03:00.6]} 3... d5 {[%clk 0:02:57.9]}
4. cxd5 {[%clk 0:03:00]} 4... Nxd5 {[%clk 0:02:58.8]} 5. Nc3 {[%clk 0:02:59]}
5... Nc7 {[%clk 0:02:58.4]} 6. d3 {[%clk 0:02:55.9]} 6... g6 {[%clk 0:02:53.4]}
7. Be3 {[%clk 0:02:53.1]} 7... Nba6 {[%clk 0:02:40.3]} 8. Qd2 {[%clk 0:02:50]}
8... Bg7 {[%clk 0:02:39.6]} 9. Bh6 {[%clk 0:02:47]} 9... O-O {[%clk 0:02:38.5]}
10. h4 {[%clk 0:02:45.9]} 10... Bg4 {[%clk 0:02:20.1]} 11. f3 {[%clk 0:02:43.9]}
11... Bxh6 {[%clk 0:02:09]} 12. Qxh6 {[%clk 0:02:40.6]} 12... Qd6 {[%clk
0:02:08.5]} 13. fxg4 {[%clk 0:02:28.6]} 13... Qxg3+ {[%clk 0:02:07.6]} 14. Kf1
{[%clk 0:02:29.1]} 14... f5 {[%clk 0:01:20.7]} 15. gxf5 {[%clk 0:01:33.3]} 15...
Rxf5+ {[%clk 0:01:14.5]} 16. Nf3 {[%clk 0:01:33.5]} 16... Raf8 {[%clk
0:01:00.2]} 17. Ne4 {[%clk 0:01:15.2]} 17... Rxf3+ {[%clk 0:00:29.7]} 18. exf3
{[%clk 0:01:14.4]} 18... Rxf3+ {[%clk 0:00:29]} 19. Bxf3 {[%clk 0:00:57.6]}
19... Qxf3+ {[%clk 0:00:28.2]} 20. Nf2 {[%clk 0:00:54.5]} 20... Nd5 {[%clk
0:00:26.2]} 21. Rh3 {[%clk 0:00:39]} 21... Qf6 {[%clk 0:00:06.1]} 22. Qg5 {[%clk
0:00:39.2]} 22... Qxb2 {[%clk 0:00:05.3]} 23. Qxd5+ {[%clk 0:00:38.5]} 23... Kg7
{[%clk 0:00:04.6]} 24. Re1 {[%clk 0:00:37]} 24... Nb4 {[%clk 0:00:04.1]} 25.
Rxe7+ {[%clk 0:00:36.1]} 1-0

[Event "*** Titled Tuesday Blitz"]
[Site "Chess.com"]
[Date "2020.12.29"]
[Round "9"]
[White "Savva09022009"]
[Black "1f3_2g41-0"]
[Result "1-0"]
[WhiteElo "2614"]
[BlackElo "2429"]
[TimeControl "180+1"]
[EndTime "11:43:48 PST"]
[Termination "Savva09022009 won by resignation"]

1. d4 {[%clk 0:03:00.9]} 1... Nf6 {[%clk 0:02:59.7]} 2. Nc3 {[%clk 0:02:58.8]}
2... d5 {[%clk 0:02:59.4]} 3. Bf4 {[%clk 0:02:58.7]} 3... e6 {[%clk 0:02:58]} 4.
e3 {[%clk 0:02:58.3]} 4... Bd6 {[%clk 0:02:58.3]} 5. Nf3 {[%clk 0:02:57.9]} 5...
O-O {[%clk 0:02:57.9]} 6. Bd3 {[%clk 0:02:57.1]} 6... c5 {[%clk 0:02:56.2]} 7.
O-O {[%clk 0:02:55.9]} 7... a6 {[%clk 0:02:54.1]} 8. dxc5 {[%clk 0:02:56]} 8...
Bxc5 {[%clk 0:02:53.8]} 9. e4 {[%clk 0:02:56]} 9... d4 {[%clk 0:02:50]} 10. Ne2
{[%clk 0:02:54.9]} 10... Nc6 {[%clk 0:02:50]} 11. e5 {[%clk 0:02:54.8]} 11...
Nd5 {[%clk 0:02:49.8]} 12. Bg3 {[%clk 0:02:53.9]} 12... f5 {[%clk 0:02:43.9]}
13. exf6 {[%clk 0:02:52.7]} 13... Qxf6 {[%clk 0:02:44.2]} 14. Be4 {[%clk
0:02:49.3]} 14... Bd7 {[%clk 0:02:01.4]} 15. Nc1 {[%clk 0:02:44]} 15... Nf4
{[%clk 0:01:45.7]} 16. Nd3 {[%clk 0:02:38.6]} 16... Nxd3 {[%clk 0:01:42.5]} 17.
Qxd3 {[%clk 0:02:39.5]} 17... h6 {[%clk 0:01:39.5]} 18. a3 {[%clk 0:02:35.8]}
18... Ne7 {[%clk 0:01:22.9]} 19. b4 {[%clk 0:02:26.3]} 19... Bb5 {[%clk
0:01:21.5]} 20. Qd2 {[%clk 0:02:18.4]} 20... Bxf1 {[%clk 0:01:21.4]} 21. Rxf1
{[%clk 0:02:14.8]} 21... Bb6 {[%clk 0:01:20.1]} 22. Be5 {[%clk 0:02:14]} 22...
Qf7 {[%clk 0:01:18.3]} 23. Bxb7 {[%clk 0:02:12.4]} 23... Rad8 {[%clk 0:01:17.6]}
24. Bxa6 {[%clk 0:02:07.4]} 24... Qh5 {[%clk 0:01:08.2]} 25. Qe2 {[%clk
0:02:00.7]} 25... Nf5 {[%clk 0:00:43.5]} 26. Bc4 {[%clk 0:01:52.2]} 26... Kh8
{[%clk 0:00:38.6]} 27. Nxd4 {[%clk 0:01:48.1]} 27... Qxe2 {[%clk 0:00:34.2]} 28.
Nxe2 {[%clk 0:01:49]} 28... Rd2 {[%clk 0:00:32.4]} 29. Nf4 {[%clk 0:01:49.1]}
29... Rxc2 {[%clk 0:00:28.1]} 30. Ng6+ {[%clk 0:01:47.6]} 30... Kg8 {[%clk
0:00:25.1]} 31. Bxe6+ {[%clk 0:01:47.1]} 31... Rf7 {[%clk 0:00:25.7]} 32. Bxf5
{[%clk 0:01:42.2]} 32... Rxf5 {[%clk 0:00:25.4]} 33. Ne7+ {[%clk 0:01:42]} 33...
Kf7 {[%clk 0:00:26.1]} 34. Nxf5 {[%clk 0:01:42.1]} 34... Ke6 {[%clk 0:00:26.9]}
35. Nd4+ {[%clk 0:01:42.4]} 35... Bxd4 {[%clk 0:00:26.5]} 36. Bxd4 {[%clk
0:01:43.3]} 36... Ra2 {[%clk 0:00:26.8]} 37. Ra1 {[%clk 0:01:41.5]} 37... Rc2
{[%clk 0:00:27.1]} 38. Bxg7 {[%clk 0:01:40.3]} 38... Kd5 {[%clk 0:00:27.5]} 39.
Bxh6 {[%clk 0:01:40.1]} 39... Ke4 {[%clk 0:00:28.1]} 40. Be3 {[%clk 0:01:40.4]}
40... Kd3 {[%clk 0:00:28.1]} 41. a4 {[%clk 0:01:39.2]} 41... Ke2 {[%clk
0:00:27.8]} 42. a5 {[%clk 0:01:38.9]} 42... Rb2 {[%clk 0:00:27.9]} 43. a6 {[%clk
0:01:38.9]} 43... Rb3 {[%clk 0:00:24.4]} 44. a7 {[%clk 0:01:37.2]} 44... Rc3
{[%clk 0:00:25.2]} 45. a8=Q {[%clk 0:01:36.6]} 45... Rd3 {[%clk 0:00:26.1]} 46.
g4 {[%clk 0:01:29]} 46... Rd5 {[%clk 0:00:23.1]} 47. Re1+ {[%clk 0:01:25.3]}
47... Kxe1 {[%clk 0:00:22.4]} 48. Qxd5 {[%clk 0:01:25.3]} 48... Ke2 {[%clk
0:00:22.4]} 49. h4 {[%clk 0:01:24.2]} 49... Ke1 {[%clk 0:00:22.8]} 50. h5 {[%clk
0:01:25.1]} 50... Ke2 {[%clk 0:00:23.7]} 51. g5 {[%clk 0:01:26]} 51... Ke1
{[%clk 0:00:24.5]} 52. g6 {[%clk 0:01:26.9]} 52... Ke2 {[%clk 0:00:25.3]} 53. h6
{[%clk 0:01:27.8]} 53... Ke1 {[%clk 0:00:26.2]} 54. g7 {[%clk 0:01:28.7]} 54...
Ke2 {[%clk 0:00:27.1]} 55. h7 {[%clk 0:01:29.6]} 55... Ke1 {[%clk 0:00:28]} 56.
g8=N {[%clk 0:01:29.9]} 56... Ke2 {[%clk 0:00:28.4]} 57. h8=B {[%clk 0:01:29.3]}
1-0

[Event "*** Titled Tuesday Blitz"]
[Site "Chess.com"]
[Date "2020.12.29"]
[Round "9"]
[White "DarZay"]
[Black "CHENNAIBOND"]
[Result "1-0"]
[WhiteElo "2106"]
[BlackElo "1571"]
[TimeControl "180+1"]
[EndTime "11:43:49 PST"]
[Termination "DarZay won by resignation"]

1. e4 {[%clk 0:03:00.9]} 1... c5 {[%clk 0:02:59.9]} 2. Nf3 {[%clk 0:03:00.4]}
2... Nc6 {[%clk 0:03:00.4]} 3. d4 {[%clk 0:03:00.1]} 3... cxd4 {[%clk
0:03:00.9]} 4. Nxd4 {[%clk 0:03:00.3]} 4... Nf6 {[%clk 0:03:01.5]} 5. Nc3 {[%clk
0:03:00.1]} 5... e5 {[%clk 0:03:02.1]} 6. Ndb5 {[%clk 0:02:59.1]} 6... d6 {[%clk
0:03:02.6]} 7. Bg5 {[%clk 0:02:56.8]} 7... a6 {[%clk 0:03:02.8]} 8. Na3 {[%clk
0:02:56.7]} 8... b5 {[%clk 0:03:03.2]} 9. Nd5 {[%clk 0:02:54.5]} 9... Be7 {[%clk
0:03:03.6]} 10. Bxf6 {[%clk 0:02:53.5]} 10... Bxf6 {[%clk 0:03:03.9]} 11. c4
{[%clk 0:02:53.8]} 11... b4 {[%clk 0:03:03.3]} 12. Nc2 {[%clk 0:02:53.9]} 12...
a5 {[%clk 0:03:03.8]} 13. Be2 {[%clk 0:02:52.2]} 13... Bg5 {[%clk 0:03:02.7]}
14. O-O {[%clk 0:02:51.6]} 14... O-O {[%clk 0:03:02.3]} 15. Nce3 {[%clk
0:02:47.7]} 15... Be6 {[%clk 0:03:01.4]} 16. b3 {[%clk 0:02:44.9]} 16... Ne7
{[%clk 0:03:00.4]} 17. Qd3 {[%clk 0:02:37]} 17... Bxe3 {[%clk 0:02:41.1]} 18.
Qxe3 {[%clk 0:02:28.6]} 18... Bxd5 {[%clk 0:02:21.7]} 19. cxd5 {[%clk
0:02:25.6]} 19... f5 {[%clk 0:02:16.6]} 20. f4 {[%clk 0:02:25.3]} 20... exf4
{[%clk 0:02:00.6]} 21. Rxf4 {[%clk 0:02:12.7]} 21... Rc8 {[%clk 0:01:53.9]} 22.
Bc4 {[%clk 0:02:06.6]} 22... Rc5 {[%clk 0:01:19.1]} 23. e5 {[%clk 0:01:50.5]}
23... Ng6 {[%clk 0:01:07.9]} 24. e6 {[%clk 0:01:45.8]} 24... Nxf4 {[%clk
0:01:05.7]} 25. e7 {[%clk 0:01:45.6]} 25... Qb6 {[%clk 0:00:45.3]} 26. exf8=Q+
{[%clk 0:01:42.4]} 26... Kxf8 {[%clk 0:00:45.1]} 27. Re1 {[%clk 0:01:28.9]}
27... Kf7 {[%clk 0:00:18.3]} 28. Kh1 {[%clk 0:00:39.6]} 28... Ng6 {[%clk
0:00:10.1]} 29. Qe6+ {[%clk 0:00:36.8]} 1-0

[Event "*** Titled Tuesday Blitz"]
[Site "Chess.com"]
[Date "2020.12.29"]
[Round "9"]
[White "vugarrasulov"]
[Black "NMShanMeruga"]
[Result "0-1"]
[WhiteElo "2781"]
[BlackElo "2476"]
[TimeControl "180+1"]
[EndTime "11:43:51 PST"]
[Termination "NMShanMeruga won by checkmate"]

1. d4 {[%clk 0:03:00.9]} 1... Nf6 {[%clk 0:02:59.2]} 2. c4 {[%clk 0:03:01.1]}
2... e6 {[%clk 0:02:59.6]} 3. Nf3 {[%clk 0:03:01.4]} 3... c5 {[%clk 0:02:48.3]}
4. d5 {[%clk 0:03:01.3]} 4... exd5 {[%clk 0:02:46.9]} 5. cxd5 {[%clk 0:03:02.2]}
5... Bd6 {[%clk 0:02:44.4]} 6. Nc3 {[%clk 0:03:02]} 6... Bc7 {[%clk 0:02:42.8]}
7. d6 {[%clk 0:03:02.9]} 7... Ba5 {[%clk 0:02:40.8]} 8. g3 {[%clk 0:03:03.3]}
8... O-O {[%clk 0:02:38.4]} 9. Bg2 {[%clk 0:03:03.5]} 9... Ne4 {[%clk
0:02:36.2]} 10. O-O {[%clk 0:03:03.7]} 10... Nxc3 {[%clk 0:02:33.1]} 11. bxc3
{[%clk 0:03:04.6]} 11... Bxc3 {[%clk 0:02:31.7]} 12. Rb1 {[%clk 0:03:04.9]}
12... Nc6 {[%clk 0:02:30]} 13. h4 {[%clk 0:02:52]} 13... h6 {[%clk 0:02:11.3]}
14. Qc2 {[%clk 0:02:50]} 14... Qa5 {[%clk 0:02:08.8]} 15. a4 {[%clk 0:02:39.7]}
15... Bb4 {[%clk 0:02:05.8]} 16. Bb2 {[%clk 0:02:33]} 16... Rb8 {[%clk
0:02:02.8]} 17. Nh2 {[%clk 0:02:23]} 17... b6 {[%clk 0:01:59.8]} 18. Ng4 {[%clk
0:02:22.3]} 18... Nd4 {[%clk 0:01:57.5]} 19. Qd1 {[%clk 0:02:03.5]} 19... Ba6
{[%clk 0:01:55.7]} 20. Bxd4 {[%clk 0:01:44.6]} 20... cxd4 {[%clk 0:01:56.6]} 21.
Qxd4 {[%clk 0:01:45.3]} 21... Bc5 {[%clk 0:01:47.9]} 22. Qf4 {[%clk 0:01:45.1]}
22... Bxe2 {[%clk 0:01:45.1]} 23. Nxh6+ {[%clk 0:01:42.5]} 23... gxh6 {[%clk
0:01:40.6]} 24. Rfe1 {[%clk 0:01:43.4]} 24... Bd3 {[%clk 0:01:37.4]} 25. Rbd1
{[%clk 0:01:33.6]} 25... Bg6 {[%clk 0:01:35.5]} 26. Qxh6 {[%clk 0:01:19]} 26...
Bd4 {[%clk 0:01:30]} 27. Re7 {[%clk 0:00:54]} 27... Bg7 {[%clk 0:01:29.7]} 28.
Qf4 {[%clk 0:00:54.3]} 28... Qf5 {[%clk 0:01:24.5]} 29. Qe3 {[%clk 0:00:48.6]}
29... Rbc8 {[%clk 0:01:20]} 30. Rd5 {[%clk 0:00:47.7]} 30... Qb1+ {[%clk
0:01:09.4]} 31. Kh2 {[%clk 0:00:48]} 31... Bf5 {[%clk 0:01:05.1]} 32. h5 {[%clk
0:00:24.5]} 32... Be6 {[%clk 0:01:02.6]} 33. Rg5 {[%clk 0:00:23.9]} 33... Kh8
{[%clk 0:01:00.9]} 34. h6 {[%clk 0:00:23.1]} 34... Bf6 {[%clk 0:00:58.1]} 35.
Rg7 {[%clk 0:00:15.3]} 35... Rc5 {[%clk 0:00:54.2]} 36. Be4 {[%clk 0:00:14.9]}
36... Rh5+ {[%clk 0:00:50.5]} 37. Kg2 {[%clk 0:00:15.4]} 37... Qh1# {[%clk
0:00:50.2]} 0-1

[Event "*** Titled Tuesday Blitz"]
[Site "Chess.com"]
[Date "2020.12.29"]
[Round "9"]
[White "Bulldog167"]
[Black "PSvidler"]
[Result "0-1"]
[WhiteElo "2704"]
[BlackElo "2841"]
[TimeControl "180+1"]
[EndTime "11:43:52 PST"]
[Termination "PSvidler won on time"]

1. d4 {[%clk 0:03:00.9]} 1... Nf6 {[%clk 0:02:59.2]} 2. c4 {[%clk 0:03:01.1]}
2... g6 {[%clk 0:02:59]} 3. Nc3 {[%clk 0:03:00.3]} 3... d5 {[%clk 0:02:58.1]} 4.
Nf3 {[%clk 0:02:57.6]} 4... Bg7 {[%clk 0:02:57.7]} 5. Bg5 {[%clk 0:02:57.5]}
5... Ne4 {[%clk 0:02:55.6]} 6. cxd5 {[%clk 0:02:57.5]} 6... Nxg5 {[%clk
0:02:55.4]} 7. Nxg5 {[%clk 0:02:58.4]} 7... e6 {[%clk 0:02:55.7]} 8. Qd2 {[%clk
0:02:58.5]} 8... h6 {[%clk 0:02:55.8]} 9. Nf3 {[%clk 0:02:58.6]} 9... exd5
{[%clk 0:02:55.9]} 10. e3 {[%clk 0:02:59.1]} 10... O-O {[%clk 0:02:55.8]} 11. b4
{[%clk 0:02:59]} 11... c6 {[%clk 0:02:53.1]} 12. Be2 {[%clk 0:02:58.4]} 12...
Qd6 {[%clk 0:02:39.1]} 13. Rb1 {[%clk 0:02:57.4]} 13... Nd7 {[%clk 0:02:32.3]}
14. O-O {[%clk 0:02:51.4]} 14... Re8 {[%clk 0:02:28.9]} 15. b5 {[%clk
0:02:41.6]} 15... Nb6 {[%clk 0:02:20.4]} 16. bxc6 {[%clk 0:02:40.5]} 16... bxc6
{[%clk 0:02:20.4]} 17. Rfc1 {[%clk 0:02:35.6]} 17... Bg4 {[%clk 0:02:19.5]} 18.
h3 {[%clk 0:02:25.9]} 18... Bxf3 {[%clk 0:02:19.4]} 19. Bxf3 {[%clk 0:02:26.8]}
19... Nc4 {[%clk 0:02:19.5]} 20. Qd1 {[%clk 0:02:24.5]} 20... h5 {[%clk
0:02:15.3]} 21. Be2 {[%clk 0:02:20.7]} 21... Nxe3 {[%clk 0:02:12.9]} 22. fxe3
{[%clk 0:02:21]} 22... Rxe3 {[%clk 0:02:12.6]} 23. Bf3 {[%clk 0:02:07.1]} 23...
Rae8 {[%clk 0:02:01.2]} 24. Ne2 {[%clk 0:01:28.9]} 24... Qe7 {[%clk 0:01:54.1]}
25. Rc2 {[%clk 0:01:00]} 25... Qg5 {[%clk 0:01:52]} 26. Rb3 {[%clk 0:00:59.8]}
26... Rxb3 {[%clk 0:01:49.6]} 27. axb3 {[%clk 0:01:00.7]} 27... Qe3+ {[%clk
0:01:49.5]} 28. Kh1 {[%clk 0:00:59.2]} 28... Qxb3 {[%clk 0:01:49.4]} 29. Qc1
{[%clk 0:00:53.2]} 29... Bh6 {[%clk 0:01:33.1]} 30. Qb2 {[%clk 0:00:43.9]} 30...
Qa4 {[%clk 0:01:25.6]} 31. Qa2 {[%clk 0:00:40.9]} 31... Qb5 {[%clk 0:01:22.6]}
32. Rb2 {[%clk 0:00:25.7]} 32... Qd3 {[%clk 0:01:18]} 33. Qb3 {[%clk 0:00:25.4]}
33... Qf5 {[%clk 0:01:16.8]} 34. Qc2 {[%clk 0:00:24.5]} 34... Qf6 {[%clk
0:01:15]} 35. Ra2 {[%clk 0:00:21.7]} 35... Re3 {[%clk 0:01:12.7]} 36. Ng1 {[%clk
0:00:12.9]} 36... Qxd4 {[%clk 0:01:08.5]} 37. Qxc6 {[%clk 0:00:11.2]} 37... Re1
{[%clk 0:01:06.6]} 38. Qe8+ {[%clk 0:00:02.7]} 38... Rxe8 {[%clk 0:01:04.7]} 0-1

[Event "*** Titled Tuesday Blitz"]
[Site "Chess.com"]
[Date "2020.12.29"]
[Round "9"]
[White "Rsnr"]
[Black "Son_of_Sultan"]
[Result "1-0"]
[WhiteElo "2806"]
[BlackElo "2569"]
[TimeControl "180+1"]
[EndTime "11:43:52 PST"]
[Termination "Rsnr won on time"]

1. d4 {[%clk 0:03:00.9]} 1... d6 {[%clk 0:02:55.8]} 2. Nf3 {[%clk 0:03:00.6]}
2... g6 {[%clk 0:02:49.8]} 3. c4 {[%clk 0:02:55.9]} 3... Bg7 {[%clk 0:02:49]} 4.
Nc3 {[%clk 0:02:56.5]} 4... e5 {[%clk 0:02:44.3]} 5. dxe5 {[%clk 0:02:57.4]}
5... dxe5 {[%clk 0:02:43.6]} 6. Qxd8+ {[%clk 0:02:58.3]} 6... Kxd8 {[%clk
0:02:44.2]} 7. g3 {[%clk 0:02:59.2]} 7... f6 {[%clk 0:02:39.7]} 8. Bg2 {[%clk
0:02:59.2]} 8... c6 {[%clk 0:02:38.2]} 9. O-O {[%clk 0:02:59.8]} 9... Be6 {[%clk
0:02:38.1]} 10. b4 {[%clk 0:03:00.3]} 10... Bxc4 {[%clk 0:02:09.2]} 11. Rd1+
{[%clk 0:03:00.9]} 11... Kc7 {[%clk 0:02:06.2]} 12. Nd2 {[%clk 0:02:59.3]} 12...
Be6 {[%clk 0:01:58.8]} 13. b5 {[%clk 0:02:56]} 13... a6 {[%clk 0:01:51.4]} 14.
bxc6 {[%clk 0:02:51.7]} 14... Nxc6 {[%clk 0:01:51.2]} 15. Nde4 {[%clk
0:02:37.1]} 15... Rd8 {[%clk 0:01:44.6]} 16. Ba3 {[%clk 0:02:23.4]} 16... Rxd1+
{[%clk 0:00:57.5]} 17. Rxd1 {[%clk 0:02:24.3]} 17... Nh6 {[%clk 0:00:50.4]} 18.
Nc5 {[%clk 0:02:00.6]} 18... Re8 {[%clk 0:00:39.2]} 19. Rb1 {[%clk 0:01:15.7]}
19... Nd8 {[%clk 0:00:22.2]} 20. Nxb7 {[%clk 0:01:15.2]} 20... Bf8 {[%clk
0:00:16.7]} 21. Nc5 {[%clk 0:01:12.2]} 21... Bxc5 {[%clk 0:00:14.4]} 22. Bxc5
{[%clk 0:01:13.1]} 22... Nhf7 {[%clk 0:00:09.3]} 23. Nd5+ {[%clk 0:01:07.4]}
23... Bxd5 {[%clk 0:00:08]} 24. Bxd5 {[%clk 0:01:08.3]} 24... Nd6 {[%clk
0:00:06.1]} 25. Rb6 {[%clk 0:00:56.4]} 25... N8b7 {[%clk 0:00:06.3]} 26. Rc6+
{[%clk 0:00:53.6]} 26... Kd7 {[%clk 0:00:06]} 27. Be3 {[%clk 0:00:47.5]} 27...
f5 {[%clk 0:00:05.6]} 28. Rxa6 {[%clk 0:00:47.4]} 28... f4 {[%clk 0:00:03]} 29.
Bc6+ {[%clk 0:00:47.5]} 29... Kc7 {[%clk 0:00:01.7]} 30. Bxe8 {[%clk 0:00:47.7]}
1-0

[Event "*** Titled Tuesday Blitz"]
[Site "Chess.com"]
[Date "2020.12.29"]
[Round "9"]
[White "LimeInTheCoconut"]
[Black "Lion-Al-Messi"]
[Result "0-1"]
[WhiteElo "2370"]
[BlackElo "2538"]
[TimeControl "180+1"]
[EndTime "11:43:53 PST"]
[Termination "Lion-Al-Messi won on time"]

1. d4 {[%clk 0:03:00.9]} 1... d5 {[%clk 0:03:00.1]} 2. c4 {[%clk 0:03:00.4]}
2... c6 {[%clk 0:03:00]} 3. Nf3 {[%clk 0:02:58.9]} 3... Nf6 {[%clk 0:03:00.2]}
4. Qc2 {[%clk 0:02:59.3]} 4... e6 {[%clk 0:03:00.4]} 5. Nbd2 {[%clk 0:02:56.5]}
5... Nbd7 {[%clk 0:03:00.6]} 6. g3 {[%clk 0:02:56.5]} 6... Bd6 {[%clk
0:03:00.7]} 7. Bg2 {[%clk 0:02:56.9]} 7... O-O {[%clk 0:03:01.3]} 8. O-O {[%clk
0:02:57.5]} 8... e5 {[%clk 0:03:01.4]} 9. cxd5 {[%clk 0:02:55.9]} 9... Nxd5
{[%clk 0:02:45.8]} 10. Nc4 {[%clk 0:02:55.4]} 10... Qe7 {[%clk 0:02:41.7]} 11.
Nxd6 {[%clk 0:02:50.2]} 11... Qxd6 {[%clk 0:02:42.6]} 12. Rd1 {[%clk 0:02:48.6]}
12... exd4 {[%clk 0:02:38]} 13. Rxd4 {[%clk 0:02:44.7]} 13... Qg6 {[%clk
0:02:24.9]} 14. Qxg6 {[%clk 0:02:43.9]} 14... hxg6 {[%clk 0:02:25.8]} 15. e4
{[%clk 0:02:34.9]} 15... N5b6 {[%clk 0:02:25.8]} 16. b3 {[%clk 0:02:32.4]} 16...
Nf6 {[%clk 0:02:26]} 17. Ba3 {[%clk 0:02:28.7]} 17... Re8 {[%clk 0:02:25.6]} 18.
Ng5 {[%clk 0:02:24]} 18... Be6 {[%clk 0:02:23.6]} 19. Rad1 {[%clk 0:02:20.6]}
19... Ng4 {[%clk 0:02:20.2]} 20. h3 {[%clk 0:02:05.9]} 20... Nf6 {[%clk
0:02:17.9]} 21. f4 {[%clk 0:01:55.5]} 21... Rac8 {[%clk 0:02:16.9]} 22. Nxe6
{[%clk 0:01:41.1]} 22... Rxe6 {[%clk 0:02:17.8]} 23. Kf2 {[%clk 0:01:33]} 23...
Ree8 {[%clk 0:02:18]} 24. g4 {[%clk 0:01:30]} 24... c5 {[%clk 0:02:17.6]} 25.
Rd6 {[%clk 0:01:10.2]} 25... Nxe4+ {[%clk 0:02:15.3]} 26. Bxe4 {[%clk
0:01:10.4]} 26... Rxe4 {[%clk 0:02:16.2]} 27. Rd8+ {[%clk 0:01:00.6]} 27... Rxd8
{[%clk 0:02:16.3]} 28. Rxd8+ {[%clk 0:01:00]} 28... Kh7 {[%clk 0:02:17.2]} 29.
Kf3 {[%clk 0:00:59]} 29... Re1 {[%clk 0:02:07.3]} 30. Bxc5 {[%clk 0:00:56.8]}
30... Ra1 {[%clk 0:02:07.3]} 31. Bxb6 {[%clk 0:00:52.7]} 31... axb6 {[%clk
0:02:08.2]} 32. Rd6 {[%clk 0:00:49.3]} 32... Rf1+ {[%clk 0:02:01.9]} 33. Kg3
{[%clk 0:00:48.7]} 33... Rg1+ {[%clk 0:02:01.9]} 34. Kf2 {[%clk 0:00:45.1]}
34... Rh1 {[%clk 0:02:01.5]} 35. Rxb6 {[%clk 0:00:40.8]} 35... Rxh3 {[%clk
0:01:57.8]} 36. a4 {[%clk 0:00:36.7]} 36... f5 {[%clk 0:01:51.9]} 37. gxf5
{[%clk 0:00:33.5]} 37... gxf5 {[%clk 0:01:52.8]} 38. Rxb7 {[%clk 0:00:33.6]}
38... Rh4 {[%clk 0:01:52.5]} 39. Kg3 {[%clk 0:00:32]} 39... Rg4+ {[%clk
0:01:52.5]} 40. Kf3 {[%clk 0:00:32.4]} 40... Rg1 {[%clk 0:01:50.3]} 41. a5
{[%clk 0:00:30.9]} 41... Rf1+ {[%clk 0:01:50.4]} 42. Ke3 {[%clk 0:00:29.8]}
42... Re1+ {[%clk 0:01:50.1]} 43. Kf2 {[%clk 0:00:25]} 43... Ra1 {[%clk
0:01:50]} 44. b4 {[%clk 0:00:24.5]} 44... Kh6 {[%clk 0:01:49.8]} 45. Rb6+ {[%clk
0:00:18.9]} 45... Kh5 {[%clk 0:01:49.7]} 46. a6 {[%clk 0:00:19.1]} 46... Kg4
{[%clk 0:01:49.9]} 47. b5 {[%clk 0:00:15.2]} 47... Kxf4 {[%clk 0:01:50]} 48. Rg6
{[%clk 0:00:12.8]} 48... Ra2+ {[%clk 0:01:49.4]} 49. Ke1 {[%clk 0:00:13.3]}
49... Ke3 {[%clk 0:01:49.6]} 50. Kd1 {[%clk 0:00:12]} 50... Kd3 {[%clk
0:01:47.7]} 51. Rd6+ {[%clk 0:00:04.1]} 51... Ke3 {[%clk 0:01:44.7]} 52. Rd7
{[%clk 0:00:03.5]} 52... f4 {[%clk 0:01:41.7]} 0-1